Cogmind - Beta 13 *** ADVENTURER MODE // 2024.04.09 @ 13:04:27 Player: HoneyComb Result: Destroyed by G-34 Mercenary with Small Laser Performance ------------- Evolutions (1) 500 Regions Visited (2) 400 Robots Destroyed (16) 80 Value Destroyed (459) 459 Prototype IDs (0) 0 Alien Tech Used (0) 0 Bonus (0) 0 TOTAL SCORE: 1439 Bonus ------- None Cogmind --------- Core Integrity 0/400 Matter 168/300 Energy 100/100 System Corruption 0% Temperature Cool (6) Movement Core (50) Location -9/Materials Parts ------- > --- POWER (2) -------- (None) > --- PROPULSION (2) --- (None) > --- UTILITY (3) ------ (None) > --- WEAPON (2) ------- (None) > --- INVENTORY (5) ---- VTOL Module Peak State ------------ > --- POWER ------------ Ion Engine Improved Ion Engine > --- PROPULSION ------- Compact Wheel VTOL Module > --- UTILITY ---------- Medium Storage Unit Structural Scanner ECM Suite > --- WEAPON ----------- Medium Laser Beam Cannon > --- INVENTORY -------- Compact Wheel Flight Unit Targeting Computer Assault Rifle [Rating: 11] Favorites ----------- Power Ion Engine Engine Ion Engine Propulsion Compact Wheel Wheel Compact Wheel Flight Unit Flight Unit Utility Structural Scanner Device Structural Scanner Storage Medium Storage Unit Weapon Medium Laser Energy Gun Medium Laser Energy Cannon Beam Cannon Ballistic Gun Assault Rifle Build | -11 -10 -9 ------- Run | Yrd Mat Mat Slots Evolved 2 | . . 2 Power 1 | . . 1 Propulsion . | . . . Utility 1 | . . 1 Weapon . | . . . Parts Attached 17 | 6 4 7 Power 2 | 1 . 1 Engine 2 | 1 . 1 Core . | . . . Reactor . | . . . Propulsion 6 | 2 . 4 Treads . | . . . Leg . | . . . Wheel 3 | 2 . 1 Hover . | . . . Flight 3 | . . 3 Utility 4 | 1 2 1 Device 2 | . 1 1 Storage 2 | 1 1 . Processor . | . . . Hackware . | . . . Protection . | . . . Artifact . | . . . Weapon 5 | 2 2 1 Energy Gun 1 | 1 . . Energy Cannon 1 | . 1 . Ballistic Gun 3 | 1 1 1 Ballistic Cannon . | . . . Launcher . | . . . Special Weapon . | . . . Impact Weapon . | . . . Slashing Weapon . | . . . Piercing Weapon . | . . . Special Melee Weapon . | . . . Unidentified Prototypes . | . . . Parts Lost 10 | . 1 9 Power 2 | . . 2 Propulsion 4 | . . 4 Utility 1 | . . 1 Weapon 3 | . 1 2 Highest Loss Streak 4 | . 1 4 To Critical Strikes . | . . . Average Slot Usage (%) 72 | . 95 49 Engine 12 | . 14 10 Wheel 18 | . 28 8 Device 11 | . 11 12 Storage 10 | . 14 7 Energy Gun 8 | . 14 2 Energy Cannon 2 | . 1 4 Ballistic Gun 6 | . 11 2 Naked Turns 147 | . . 147 Heaviest Build 30 | 14 21 30 Greatest Support 32 | 32 32 32 Greatest Overweight (x) 9 | 3 . 9 Average Overweight (x) . | . . . Largest Inventory Capacity 10 | 8 10 10 Average Capacity 8 | 7 8 8 Most Carried 5 | 2 5 5 Average Carried 2 | . 2 2 Final Capacity 10 | 8 10 5 Final Carried 4 | . 4 1 Class Distribution -------------------- 74% | Mutant 25% | Infiltrator-Mutant Dominant Class ---------------- Mutant | -10/Materials Infiltrator-Mutant | -9/Materials Resources | -11 -10 -9 ----------- Run | Yrd Mat Mat Matter Collected 242 | 96 74 72 Remotely . | . . . Salvage Created 417 | . 121 296 Parts 28 | . 7 21 Haulers Intercepted . | . . . Recyclers Shooed . | . . . Parts Field Recycled . | . . . Retrieved Matter . | . . . Parts Self-Destructed . | . . . Prevented . | . . . Kills | -11 -10 -9 ------- Run | Yrd Mat Mat Combat Hostiles Destroyed 12 | . 5 7 Guns 5 | . 5 . Cannons 5 | . . 5 AOE 2 | . . 2 Classes Destroyed 7 | . 2 5 Worker 2 | . . 2 Operator 1 | . . 1 Watcher 1 | . . 1 Swarmer 3 | . 3 . Grunt 7 | . 2 5 Brawler 1 | . . 1 Sentry 1 | . . 1 Best Kill Streak 6 | . 3 6 Combat Bots Only 5 | . 3 5 Max Kills in Single Turn 4 | . 1 4 Gunslinging . | . . . Exploded 2 | . . 2 Melee . | . . . Uniques/NPCs Destroyed . | . . . Combat | -11 -10 -9 -------- Run | Yrd Mat Mat Hostile Shots Fired 167 | . 31 136 Missed 60 | . 9 51 Damage Taken 1143 | . 288 855 Core 521 | . 119 402 Absorbed by Shields . | . . . Ignored by Resistances 345 | . 87 258 Core Remaining (%) 76 | 100 52 . Volleys Fired 39 | . 20 19 Largest 2 | . 2 2 Hottest 110 | . 70 110 Shots Fired 69 | . 31 38 Gun 50 | . 31 19 Cannon 19 | . . 19 Launcher . | . . . Special . | . . . Kinetic 24 | . 11 13 Thermal 45 | . 20 25 Explosive . | . . . Electromagnetic . | . . . Robot Hit Streak 12 | . 12 7 Robot Miss Streak 6 | . 3 6 Penetration Max . | . . . Secondary Targets 2 | . 2 . Max Gunslinging Chain 1 | . 1 . Shots Hit Robots 45 | . 24 21 Core Hits 23 | . 8 15 Critical Kills . | . . . Critical Parts Destroyed . | . . . Critical Strikes 1 | . 1 . Burn 1 | . 1 . Melee Attacks . | . . . Impact . | . . . Slashing . | . . . Piercing . | . . . Sneak Attacks . | . . . Combat Hostiles . | . . . Follow-up Attacks . | . . . Damage Inflicted 1032 | . 291 741 Guns 465 | . 291 174 Cannons 157 | . . 157 Explosions 395 | . . 395 Melee . | . . . Ramming 15 | . . 15 Kinetic 216 | . 91 125 Thermal 801 | . 200 601 Explosive . | . . . Electromagnetic . | . . . Impact . | . . . Slashing . | . . . Piercing . | . . . Highest Corruption . | . . . Average Corruption . | . . . Corruption Purged . | . . . Corruption Blocked . | . . . Overload Shots . | . . . Overflow Damage 138 | . . 138 Projectiles . | . . . Explosions 138 | . . 138 Melee . | . . . Knockbacks . | . . . Impact . | . . . Kinetic . | . . . Secondary . | . . . Self-Inflicted Damage 132 | . . 132 Shots 2 | . . 2 Rammed 9 | . . 9 Targets Rammed 9 | . . 9 Kicked . | . . . Crushed . | . . . Highest Temperature 410 | . 175 410 Average Temperature 178 | . 54 253 Received Heat Transfer 603 | . 75 528 Effects 14 | . . 14 Shutdowns 4 | . . 4 Energy Bleed 1 | . . 1 Interference 3 | . . 3 Matter Decay 1 | . . 1 Short Circuit 2 | . . 2 Damage (minor) 1 | . . 1 Damage (major) 2 | . . 2 Siege Activations . | . . . Robots Corrupted . | . . . Combat Hostiles . | . . . Parts Fried . | . . . Impact Corruptions . | . . . Robots Melted . | . . . Combat Hostiles . | . . . Parts Melted 2 | . 2 . Heat Transferred 1447 | . 666 781 Parts Sabotaged . | . . . Parts Stolen . | . . . Parts Stripped . | . . . Power Chain Reactions . | . . . Alert | -11 -10 -9 ------- Run | Yrd Mat Mat Peak Influence 248 | . 162 248 Initial . | . . . Average 90 | . 69 123 Maximum Alert Level 1 | . . 1 Low Security (%) 88 | 100 100 76 Level 1 11 | . . 23 Level 2 . | . . . Level 3 . | . . . Level 4 . | . . . Level 5 . | . . . High Security . | . . . Max Security . | . . . Squads Dispatched 3 | . . 3 Investigation 3 | . . 3 Extermination . | . . . Reinforcement . | . . . Assault . | . . . Garrison . | . . . Intercept . | . . . Searches Triggered . | . . . Construction Impeded . | . . . Haulers Reinforced . | . . . Active Scanning Responses . | . . . Cargo Convoy Interrupts . | . . . Stealth | -11 -10 -9 --------- Run | Yrd Mat Mat Distress Signals 2 | . 1 1 Communications Jammed . | . . . Distress Signals . | . . . Times Spotted 27 | . 8 19 Peak Tracking Total 6 | . 4 6 Tactical Retreats 2 | . . 2 Traps | -11 -10 -9 ------- Run | Yrd Mat Mat Traps Triggered 1 | . . 1 Indirectly . | . . . Trap Hack Attempts . | . . . Triggered . | . . . Disarmed . | . . . Reprogrammed . | . . . Reused . | . . . Traps Extracted . | . . . Installed . | . . . Triggered . | . . . Machines | -11 -10 -9 ---------- Run | Yrd Mat Mat Machines Disabled 5 | . . 5 Max in Single Turn 5 | . . 5 Machines Repaired . | . . . Machines Dismantled . | . . . Machines Sabotaged . | . . . Overloaded Fab Kills . | . . . Hacking | -11 -10 -9 --------- Run | Yrd Mat Mat Machines Accessed 11 | . 3 8 Terminals 10 | . 3 7 Fabricators . | . . . Repair Stations 1 | . . 1 Recycling Units . | . . . Scanalyzers . | . . . Garrison Access . | . . . Total Hacks 21 | . 6 15 Successful 8 | . 3 5 Failed 13 | . 3 10 Catastrophic 4 | . . 4 Database Lockouts . | . . . Manual 17 | . 6 11 Terminals 18 | . 6 12 Fabricators . | . . . Repair Stations 3 | . . 3 Recycling Units . | . . . Scanalyzers . | . . . Garrison Access . | . . . Terminal Hacks 8 | . 3 5 Alert Level 3 | . 2 1 Recall Investigation 3 | . 1 2 Recall Reinforcements 1 | . . 1 Zone Layout 1 | . . 1 Fabricator Hacks . | . . . Repair Station Hacks . | . . . Recycling Unit Hacks . | . . . Scanalyzer . | . . . Garrison Access Hacks . | . . . Unauthorized Hacks . | . . . Terminals . | . . . Fabricators . | . . . Repair Stations . | . . . Recycling Units . | . . . Scanalyzers . | . . . Garrison Access . | . . . Data Cores Recovered 1 | . . 1 Used . | . . . Hacking Detections 9 | . 3 6 Full Trace Events 3 | . . 3 Feedback Events . | . . . Feedback Blocked . | . . . Robot Schematics Acquired . | . . . Robots Built . | . . . Authchips . | . . . Time . | . . . Total Robot Build Rating . | . . . Part Schematics Acquired . | . . . Parts Built . | . . . Authchips . | . . . Time . | . . . Total Part Build Rating . | . . . Parts Repaired . | . . . Time . | . . . Parts Recycled . | . . . Recycled Matter . | . . . Retrieved Matter . | . . . Retrieved Components . | . . . Parts Scanalyzed . | . . . Part Schematics Acquired . | . . . Parts Damaged . | . . . Bothacking | -11 -10 -9 ------------ Run | Yrd Mat Mat Used RIF Installer . | . . . Robots Hacked . | . . . Non-combat . | . . . Combat . | . . . Robot Hacks Applied . | . . . Relay Couplers Released . | . . . Fabnet Peak Effective % . | . . . Robots Rewired . | . . . Allies Hacked . | . . . Hacks Repelled . | . . . Allies | -11 -10 -9 -------- Run | Yrd Mat Mat Total Allies . | . . . Largest Group . | . . . Highest-Rated Group . | . . . Highest-Rated Ally . | . . . Total Orders . | . . . Ally Attacks . | . . . Total Damage . | . . . Kills . | . . . Allies Corrupted . | . . . Allies Melted . | . . . Intel | -11 -10 -9 ------- Run | Yrd Mat Mat Robot Analysis Total . | . . . Derelict Logs Recovered . | . . . Drone Launches . | . . . Drone Recoveries . | . . . Exploration | -11 -10 -9 ------------- Run | Yrd Mat Mat Turns Passed 958 | 59 443 456 Spaces Moved 880 | 47 378 455 Core 305 | 11 . 294 Treads . | . . . Legs . | . . . Wheels 526 | 36 378 112 Hover . | . . . Flight 49 | . . 49 Fastest Speed 34 | 50 100 34 Average Speed 89 | 101 100 80 Slowest Speed 500 | 200 100 500 Overloaded Moves . | . . . Propulsion Burnouts . | . . . Robots Hopped 6 | . . 6 Cave-ins Triggered . | . . . Exploration Rate (%) 25 | 4 37 36 Regions Visited 2 Branch Regions . Pre-discovered Areas . | . . . Known Exits Taken . | . . . Unknown Exits Taken 2 | 1 1 . Scrap Searched . | . . . Spaces Dug . | . . . Terrain Destroyed 11 | . . 11 Melee . | . . . Projectile . | . . . AOE 11 | . . 11 Terrain Rammed . | . . . Walls Destroyed . | . . . Machines Disabled . | . . . Actions | -11 -10 -9 --------- Run | Yrd Mat Mat Total 975 | 58 412 505 Wait 14 | . 3 11 Move 866 | 46 377 443 Hop 6 | . . 6 Pick Up 15 | 6 6 3 Fast Attach . | . . . Attach 15 | 6 2 7 Detach 3 | . . 3 Swap 2 | . 2 . Drop 6 | . 2 4 Fire 39 | . 20 19 Melee . | . . . Ram 9 | . . 9 Kick . | . . . Crush . | . . . Escape Stasis . | . . . Rewire . | . . . Trap . | . . . Miscellaneous . | . . . Route ------- -11/Scrapyard -10/Materials -9/Materials History --------- Turn | Location | Event 30 | -11/Scrapyard | Discovered new exit (range 16) 60 | -11/Scrapyard | Entered Materials 300 | -10/Materials | Build established: Mutant 362 | -10/Materials | Discovered new exit (range 13) 503 | -10/Materials | Entered another Materials area 503 | -9/Materials | Evolved 2 slots: Power x1, Utility x1 739 | -9/Materials | Lost 4 parts (1p2n1w) 762 | -9/Materials | Core integrity fell below 50% 786 | -9/Materials | Lost 3 parts (1p1u1w) 848 | -9/Materials | Core integrity fell below 20% 959 | -9/Materials | Destroyed by G-34 Mercenary with Small Laser Last Messages --------------- Connecting with Terminal... >>Recall(Reinforcements) Establishing remote squad link... No tasked reinforcement squads found. Connecting with Terminal... ALERT: Suspicious activity at Terminal M004. Dispatching Investigation squad. Triggered Alarm Trap. An alarm sounds. ALERT: Alarm triggered, dispatching investigation squad. [Achievement: Party Time] T-07 Excavator is excavating. Connecting with Terminal... [Achievement: GoHome()] >>Recall(Investigation) Establishing remote squad link... Recalled investigation squad 6QOGY4R995. Connecting with Terminal... Slammed into G-34 Mercenary. Map ----- +----------------------------------------------------+ | ?????????????????????????????????? | | ?????????????????????????????????? | | ?????????????????????????????????? | | ?????????????????????????????????? | | ?????????????????????????????????? | | ?????????????????????????????????? | | ?????????????????????????????????? | | ?????????????????????????????????? | | ?????????????????????????????????? | | ?????????????????????????????????? | | ?????????????????????????????????? | | ?????????????????????????????????? | | ?????????????????????????????????? | | ?????????????????????????????????? | | ?????????????????????????????????? | | ?????????????????????????????????? | | ?????????????????????????????????? | | ?????????????????????????????????? | | ?????????????????????????????????? | | ???????########??????????????????? | | ???????# #??????????????????? | | ???????# #??????????????????? | | ???????# #??????????????????? | | ???????# #??????????????????? | | ???????# ! #??????????????????? | | ???????# @g #??????????????????? | | ????#######+#######??????????????? | | ????# ######?????????? | | ????# ##### # #?????????? | | ????# #???# !!# !#?????????? | | ???##+##### !!# #?????????? | | ???# # # /! #?????????? | | ???# # # /! #?????????? | | ???# + """ + /! #?????????? | | ???# # """ # #?????????? | | ???# # """ # #?????????? | | ???# # # #?????????? | | ???######## ###+#######????? | | ??????????# ##+##+#?# #????? | | ??????????# #???????# """ #????? | | ??????????# #???????# "T" #????? | | ??????????# #???????# ###### | | ??????????# #???????# + | | ??????????# #???????# #### # | | ??????????# #???????# #### # | | ???######## ####+#### # | | ???# # #######+## | | ???# """ # | | ???# """ + T | | ???# """ # | +----------------------------------------------------+ Best States ------------- Heat Dissipation 28 Energy Generation 17 Energy Capacity 415 Matter Stores 165 Matter Capacity 300 Sight Range 16 Terrain Scan Density 10 ECM Strength 1 Resistance: KI 20 Resistance: TH 20 Resistance: EX 20 Resistance: EM 20 Resistance: I 20 Resistance: S 20 Resistance: P 20 Evasion (%) 62 Offensive Hacking 10 Item Schematics ----------------- None Robot Schematics ------------------ None Fabricated ------------ Nothing Alien Tech Used ----------------- None Achievements -------------- GoHome() Party Time Challenges ------------ None Game ------ Seed LobotomyGreatMembrane Manual? 0 Play Time 00:22:58 Cumulative 2.0 hours Start 2024.04.09 @ 12:40:54 End 2024.04.09 @ 13:04:27 Sessions 1 Manual Loads 0 Difficulty Adventurer Special Mode None Game No. 5 Rogue 0 Adventurer 5 Explorer 0 Win Type - Total 0 Types 0/0/0/0/0/0/0/0/0 Lore% 1 Gallery% 4 Achievement% 5 Wizard Run 0 Options --------- Layout 1 ASCII 0 Keyboard 0 Movement Numpad Keybinds 0 Fullscreen 1 Font 24/Smallcaps Map View 50x35 Zoom Use 0% Tactical HUD 0 Map Filters NONE Filters NONE Steam 1 RUN: 51094643-9f99-4a4c-9a0f-f0e668d43a2a